Cogmind - Beta 13 @@@ ROGUE MODE // 2024.03.30 @ 22:11:25 Player: Err. String Expected Got Nil Result: Destroyed by G-34 Mercenary with Small Laser Performance ------------- Evolutions (0) 0 Regions Visited (1) 200 Robots Destroyed (8) 40 Value Destroyed (83) 83 Prototype IDs (0) 0 Alien Tech Used (0) 0 Bonus (0) 0 TOTAL SCORE: 323 Bonus ------- None Cogmind --------- Core Integrity 0/250 Matter 377/400 Energy 100/100 System Corruption 3% Temperature Cool (6) Movement Core (100) Ox1 Location -10/Materials Parts ------- > --- POWER (1) -------- (None) > --- PROPULSION (2) --- (None) > --- UTILITY (2) ------ Medium Matter Pod > --- WEAPON (2) ------- Mining Claw > --- INVENTORY (5) ---- Signal Interpreter Small Laser Welding Torch Peak State ------------ > --- POWER ------------ (None) > --- PROPULSION ------- Aluminum Leg Aluminum Leg > --- UTILITY ---------- Medium Matter Pod Sensor Array > --- WEAPON ----------- Assault Rifle Mining Claw > --- INVENTORY -------- Signal Interpreter [Rating: 6] Favorites ----------- Power Light Ion Engine Engine Light Ion Engine Propulsion Aluminum Leg Leg Aluminum Leg Utility Medium Matter Pod Device Sensor Array Storage Medium Matter Pod Weapon Assault Rifle Ballistic Gun Assault Rifle Slashing Weapon Mining Claw Build | -11 -10 ------- Run | Yrd Mat Slots Evolved . | . . Power . | . . Propulsion . | . . Utility . | . . Weapon . | . . Parts Attached 7 | 5 2 Power 1 | 1 . Engine 1 | 1 . Core . | . . Reactor . | . . Propulsion 2 | 2 . Treads . | . . Leg 2 | 2 . Wheel . | . . Hover . | . . Flight . | . . Utility 2 | 1 1 Device 1 | . 1 Storage 1 | 1 . Processor . | . . Hackware . | . . Protection . | . . Artifact . | . . Weapon 2 | 1 1 Energy Gun . | . . Energy Cannon . | . . Ballistic Gun 1 | 1 . Ballistic Cannon . | . . Launcher . | . . Special Weapon . | . . Impact Weapon . | . . Slashing Weapon 1 | . 1 Piercing Weapon . | . . Special Melee Weapon . | . . Unidentified Prototypes . | . . Parts Lost 5 | . 5 Power 1 | . 1 Propulsion 2 | . 2 Utility 1 | . 1 Weapon 1 | . 1 Highest Loss Streak 4 | . 4 To Critical Strikes . | . . Average Slot Usage (%) 67 | . 67 Engine 2 | . 2 Leg 27 | . 27 Device 3 | . 3 Storage 14 | . 14 Ballistic Gun 13 | . 13 Slashing Weapon 6 | . 6 Naked Turns . | . . Heaviest Build 7 | 7 7 Greatest Support 20 | 20 20 Greatest Overweight (x) 1 | . 1 Average Overweight (x) . | . . Largest Inventory Capacity 5 | 5 5 Average Capacity 5 | 5 5 Most Carried 3 | 2 3 Average Carried . | . . Final Capacity 5 | 5 5 Final Carried 3 | . 3 Class Distribution -------------------- 100% | Mutant Dominant Class ---------------- Mutant | -10/Materials Resources | -11 -10 ----------- Run | Yrd Mat Matter Collected 401 | 318 83 Remotely . | . . Salvage Created 184 | 60 124 Parts 15 | 3 12 Haulers Intercepted . | . . Recyclers Shooed . | . . Parts Field Recycled . | . . Retrieved Matter . | . . Parts Self-Destructed . | . . Prevented . | . . Kills | -11 -10 ------- Run | Yrd Mat Combat Hostiles Destroyed 4 | 1 3 Melee 1 | . 1 Guns 3 | 1 2 Classes Destroyed 4 | 2 2 Worker 3 | 1 2 Watcher 1 | . 1 Swarmer 3 | . 3 Grunt 1 | 1 . Best Kill Streak 2 | 1 2 Combat Bots Only 1 | 1 1 Max Kills in Single Turn 1 | 1 1 Gunslinging . | . . Exploded . | . . Melee 1 | . 1 Uniques/NPCs Destroyed . | . . Combat | -11 -10 -------- Run | Yrd Mat Hostile Shots Fired 97 | 5 92 Missed 29 | 2 27 Damage Taken 645 | 35 610 Core 256 | . 256 Absorbed by Shields . | . . Core Remaining (%) 100 | 100 . Volleys Fired 41 | 7 34 Largest 1 | 1 1 Hottest 20 | 20 20 Shots Fired 41 | 7 34 Gun 41 | 7 34 Cannon . | . . Launcher . | . . Special . | . . Kinetic 41 | 7 34 Thermal . | . . Explosive . | . . Electromagnetic . | . . Robot Hit Streak 2 | 2 2 Robot Miss Streak 4 | 1 4 Penetration Max . | . . Secondary Targets . | . . Shots Hit Robots 16 | 4 12 Core Hits 10 | 3 7 Critical Kills . | . . Critical Parts Destroyed . | . . Critical Strikes . | . . Melee Attacks 6 | . 6 Impact . | . . Slashing 6 | . 6 Piercing . | . . Sneak Attacks . | . . Combat Hostiles . | . . Follow-up Attacks . | . . Damage Inflicted 221 | 50 171 Guns 199 | 50 149 Cannons . | . . Explosions . | . . Melee 22 | . 22 Ramming . | . . Kinetic 199 | 50 149 Thermal . | . . Explosive . | . . Electromagnetic . | . . Impact . | . . Slashing 22 | . 22 Piercing . | . . Highest Corruption 3 | . 3 Average Corruption 2 | . 2 Corruption Purged . | . . Corruption Blocked . | . . Effects 1 | . 1 Matter Fused 1 | . 1 Overload Shots . | . . Overflow Damage . | . . Projectiles . | . . Explosions . | . . Melee . | . . Knockbacks . | . . Impact . | . . Kinetic . | . . Secondary . | . . Self-Inflicted Damage . | . . Shots . | . . Rammed . | . . Targets Rammed . | . . Kicked . | . . Crushed . | . . Highest Temperature . | . . Average Temperature . | . . Received Heat Transfer 192 | 18 174 Siege Activations . | . . Robots Corrupted . | . . Combat Hostiles . | . . Parts Fried . | . . Impact Corruptions . | . . Robots Melted . | . . Combat Hostiles . | . . Parts Melted . | . . Heat Transferred . | . . Parts Sabotaged . | . . Parts Stolen . | . . Parts Stripped . | . . Power Chain Reactions . | . . Alert | -11 -10 ------- Run | Yrd Mat Peak Influence 163 | 25 163 Initial 16 | . 16 Average 83 | 3 102 Maximum Alert Level . | . . Low Security (%) 100 | 100 100 Level 1 . | . . Level 2 . | . . Level 3 . | . . Level 4 . | . . Level 5 . | . . High Security . | . . Max Security . | . . Squads Dispatched 1 | . 1 Investigation 1 | . 1 Extermination . | . . Reinforcement . | . . Assault . | . . Garrison . | . . Intercept . | . . Searches Triggered . | . . Construction Impeded . | . . Haulers Reinforced . | . . Active Scanning Responses . | . . Cargo Convoy Interrupts . | . . Stealth | -11 -10 --------- Run | Yrd Mat Distress Signals . | . . Communications Jammed . | . . Distress Signals . | . . Times Spotted 11 | 1 10 Peak Tracking Total 4 | 1 4 Tactical Retreats 3 | . 3 Traps | -11 -10 ------- Run | Yrd Mat Traps Triggered 2 | . 2 Indirectly . | . . Trap Hack Attempts . | . . Triggered . | . . Disarmed . | . . Reprogrammed . | . . Reused . | . . Traps Extracted . | . . Installed . | . . Triggered . | . . Machines | -11 -10 ---------- Run | Yrd Mat Machines Disabled . | . . Max in Single Turn . | . . Machines Repaired . | . . Machines Dismantled . | . . Machines Sabotaged . | . . Overloaded Fab Kills . | . . Hacking | -11 -10 --------- Run | Yrd Mat Machines Accessed 1 | . 1 Terminals 1 | . 1 Fabricators . | . . Repair Stations . | . . Recycling Units . | . . Scanalyzers . | . . Garrison Access . | . . Total Hacks 2 | . 2 Successful 2 | . 2 Failed . | . . Catastrophic . | . . Database Lockouts . | . . Manual 2 | . 2 Terminals 2 | . 2 Fabricators . | . . Repair Stations . | . . Recycling Units . | . . Scanalyzers . | . . Garrison Access . | . . Terminal Hacks 2 | . 2 Record 1 | . 1 Hauler Manifests 1 | . 1 Fabricator Hacks . | . . Repair Station Hacks . | . . Recycling Unit Hacks . | . . Scanalyzer . | . . Garrison Access Hacks . | . . Unauthorized Hacks . | . . Terminals . | . . Fabricators . | . . Repair Stations . | . . Recycling Units . | . . Scanalyzers . | . . Garrison Access . | . . Data Cores Recovered . | . . Used . | . . Hacking Detections 2 | . 2 Full Trace Events 1 | . 1 Feedback Events . | . . Feedback Blocked . | . . Robot Schematics Acquired . | . . Robots Built . | . . Authchips . | . . Time . | . . Total Robot Build Rating . | . . Part Schematics Acquired . | . . Parts Built . | . . Authchips . | . . Time . | . . Total Part Build Rating . | . . Parts Repaired . | . . Time . | . . Parts Recycled . | . . Recycled Matter . | . . Retrieved Matter . | . . Retrieved Components . | . . Parts Scanalyzed . | . . Part Schematics Acquired . | . . Parts Damaged . | . . Bothacking | -11 -10 ------------ Run | Yrd Mat Used RIF Installer . | . . Robots Hacked . | . . Non-combat . | . . Combat . | . . Robot Hacks Applied . | . . Relay Couplers Released . | . . Fabnet Peak Effective % . | . . Robots Rewired . | . . Allies Hacked . | . . Hacks Repelled . | . . Allies | -11 -10 -------- Run | Yrd Mat Total Allies . | . . Largest Group . | . . Highest-Rated Group . | . . Highest-Rated Ally . | . . Total Orders . | . . Ally Attacks . | . . Total Damage . | . . Kills . | . . Allies Corrupted . | . . Allies Melted . | . . Intel | -11 -10 ------- Run | Yrd Mat Robot Analysis Total . | . . Derelict Logs Recovered . | . . Drone Launches . | . . Drone Recoveries . | . . Exploration | -11 -10 ------------- Run | Yrd Mat Turns Passed 467 | 92 375 Spaces Moved 285 | 67 218 Core 19 | 17 2 Treads . | . . Legs 266 | 50 216 Wheels . | . . Hover . | . . Flight . | . . Fastest Speed 50 | 50 100 Average Speed 115 | 102 119 Slowest Speed 120 | 120 120 Overloaded Moves . | . . Propulsion Burnouts . | . . Robots Hopped . | . . Cave-ins Triggered . | . . Exploration Rate (%) 20 | 6 34 Regions Visited 1 Branch Regions . Pre-discovered Areas . | . . Known Exits Taken . | . . Unknown Exits Taken 1 | 1 . Scrap Searched . | . . Spaces Dug . | . . Terrain Destroyed . | . . Melee . | . . Projectile . | . . AOE . | . . Terrain Rammed . | . . Walls Destroyed . | . . Machines Disabled . | . . Actions | -11 -10 --------- Run | Yrd Mat Total 371 | 83 288 Wait 22 | . 22 Move 284 | 66 218 Hop . | . . Pick Up 10 | 5 5 Fast Attach . | . . Attach 7 | 5 2 Detach . | . . Swap . | . . Drop 1 | . 1 Fire 41 | 7 34 Melee 6 | . 6 Ram . | . . Kick . | . . Crush . | . . Escape Stasis . | . . Rewire . | . . Trap . | . . Miscellaneous . | . . Route ------- -11/Scrapyard -10/Materials (discovered 1 exit: [*Mat]) History --------- Turn | Location | Event 2 | -11/Scrapyard | Met Revision 17 71 | -11/Scrapyard | Discovered new exit (range 8) 93 | -11/Scrapyard | Entered Materials 327 | -10/Materials | Build established: Mutant 344 | -10/Materials | Discovered new exit (range 13) 455 | -10/Materials | Core integrity fell below 50% 463 | -10/Materials | Core integrity fell below 20% 468 | -10/Materials | Destroyed by G-34 Mercenary with Small Laser Last Messages --------------- Triggered Shock Trap. The floor emits a surge of raw power. System corrupted (+1). U-05 Engineer lays Concrete. Triggered Shock Trap. The floor emits a surge of raw power. System corrupted (+2). U-05 Engineer lays Concrete. Sensor Array destroyed. Assault Rifle destroyed. System corrupted: Matter fused (-9). Aluminum Leg destroyed. Overweight warning: You are carrying more than your current propulsion can efficiently support, which slows movement; see status page ('s') or the top of the parts list for the specific mass vs. support values. G-34 Mercenary Sml. Laser ripped off. S-10 Pest destroyed. [Achievement: First Step to Greatness] Map ----- +----------------------------------------------------+ | | | | | | | | | ??##############???????????????????????????????? | | ??# #???????????????????????????????? | | ??# #???????????????????????????????? | | ??# #?#########?????????????????????? | | ??# #?# +?????????????????????? | | ### #?# #?????????????????????? | | ####+########### #?????????????????????? | | ==%! == +?????????????????????? | | ########/##########?????????????????????? | | ######?????# #??????????????????????????? | | #######??##### #??????????????????????????? | | #??# # #??????????????????????????? | | #??# # """ #??????????????????????????? | | #??# #%""" #??????????????????????????? | | #??# +=""" #??????????????????????????? | | #??# ###############???????????????????? | | " """ #??# #???????????????????? | | " """ #??# #???????????????????? | | " """ #??# #???????????????????? | | ####?##??# ##########=g #???????????????????? | | ??????#### #????????#%[ #??????????#????????? | | ?????##! #????????#t@ ####### !#????????? | | ?????#! #????????# #????????? | | ?????#! #????????# u #????????? | | ?????#! #????????# ####### #????????? | | ?????#! #????????# #?????????##????????? | | ?????##! #????????# #???????????????????? | | ??????#### #????????# #???????????????????? | | ?????????# #????????# #???????????????????? | | ?????????# #????????# #???????????????????? | | ?????????# #????????# #???????????????????? | | ########## ^ #????????# #???????????????????? | | #????????# #???????????????????? | | #????????+ #???????????????????? | | #????????# #???????????????????? | | #????????? #???????????????????? | | """ #????????? #???????????????????? | | """ #####????????? ???????????????????? | | """ #????????????? ???????????????????? | | #????????????? ???????????????????? | | #????????????? ????????????????????? | | #????????????????????????????????????? | | ######### #????????????????????????????????????? | | ????????# #????????????????????????????????????? | | ????????# #????????????????????????????????????? | | ????????? #????????????????????????????????????? | +----------------------------------------------------+ Best States ------------- Heat Dissipation 25 Energy Generation 10 Energy Capacity 125 Matter Stores 400 Matter Capacity 400 Sight Range 16 Robot Scan Range 14 Terrain Scan Density 10 Evasion (%) 55 Item Schematics ----------------- None Robot Schematics ------------------ None Fabricated ------------ Nothing Alien Tech Used ----------------- None Achievements -------------- First Step to Greatness One Hack Too Far Shopping List Challenges ------------ None Game ------ Seed TacticalContainmentAutobeam Manual? 0 Play Time 00:27:29 Cumulative 0.4 hours Start 2024.03.30 @ 18:44:18 End 2024.03.30 @ 22:11:25 Sessions 3 Manual Loads 0 Difficulty Rogue Special Mode None Game No. 1 Rogue 1 Adventurer 0 Explorer 0 Win Type - Total 0 Types 0/0/0/0/0/0/0/0/0 Lore% 0 Gallery% 0 Achievement% 1 Wizard Run 0 Options --------- Layout 1 ASCII 0 Keyboard 1 Movement Numpad Keybinds 0 Fullscreen 2 Font 32/SmallcapsGlow Map View 50x35 Zoom Use 0% Tactical HUD 0 Map Filters NONE Filters NONE Steam 1 RUN: 00a38586-f92c-44c8-a050-9b10ea744ed7